bitfinex/quotes_ETHUSD_20250721
["timestamp","ask_amount","ask_price","bid_price","bid_amount"]
[1753091765088,1e-08,3771.1,3770.8,2.65191237]
[1753091765726,1e-08,3771.1,3770.9,2.65187166]
[1753091765904,1e-08,3771.1,3770.7,3.08391011]
[1753091766227,1e-08,3771.1,3770.8,2.6519518]
[1753091766722,1e-08,3771.1,3770.6,2.78407577]
[1753091766903,1e-08,3771.1,3770.7,2.65200188]
[1753091767108,1e-08,3771.1,3770.7,3.08390188]
[1753091767318,1e-08,3771.1,3770.8,2.65195567]
[1753091767724,1e-08,3771.1,3770.8,3.08385567]
[1753091767903,1e-08,3771.1,3770.9,2.65187577]
[1753091768104,1e-08,3771.1,3771.0,3.79319407]
[1753091768446,1e-08,3771.1,3771.0,4.22509407]
[1753091771630,1e-08,3771.1,3771.0,2.65181649]
[1753091772545,1e-08,3771.1,3771.0,3.11641649]
[1753091775822,1e-08,3771.1,3770.9,2.78385932]
[1753091776009,1e-08,3771.1,3771.0,2.65181649]
[1753091776640,1e-08,3771.1,3770.9,0.132]
[1753091776944,1e-08,3771.1,3771.0,2.65181649]
[1753091777643,1e-08,3771.1,3770.4,1.24]
[1753091777843,1e-08,3771.1,3770.6,0.132]
[1753091778149,1e-08,3771.1,3770.8,2.65193888]
[1753091778736,1e-08,3771.1,3770.6,2.78404618]
[1753091779044,0.787,3771.0,3770.6,2.78404618]
[1753091779710,0.787,3771.0,3770.7,2.65202192]
[1753091780038,0.787,3771.0,3770.6,2.78408332]
[1753091780221,0.919,3771.0,3770.6,2.65208332]
[1753091782546,0.919,3771.0,3770.6,3.11667213]
[1753091783116,0.919,3771.0,3770.4,0.132]
[1753091783648,0.919,3771.0,3770.3,0.001]
[1753091783649,0.8103,3770.6,3770.3,0.001]
[1753091783811,4.084,3770.5,3770.3,0.001]
[1753091784207,4.216,3770.5,3770.3,0.001]
[1753091785446,4.216,3770.5,3770.3,2.65324164]
[1753091786042,4.216,3770.5,3770.3,0.001]
[1753091787554,4.216,3770.5,3770.3,2.65330226]
[1753091787741,4.216,3770.5,3770.4,2.65223848]
[1753091788525,4.216,3770.5,3770.3,0.001]
[1753091789518,4.216,3770.5,3770.3,2.65330171]
[1753091789843,4.216,3770.5,3770.4,2.65223848]
[1753091790230,4.216,3770.5,3770.4,3.11683848]
[1753091790757,1e-08,3771.1,3770.6,2.6520978]
[1753091790920,1e-08,3771.1,3771.0,2.65181649]
[1753091791119,1e-08,3771.1,3771.0,2.78381649]
[1753091791318,1e-08,3771.1,3771.0,3.24841649]
[1753091793321,1e-08,3771.1,3771.0,7.01771649]
[1753091793542,1e-08,3771.1,3771.0,8.86006995]
[1753091794046,1e-08,3771.1,3771.0,14.9355729]
[1753091794252,1e-08,3771.1,3771.0,19.0175729]
[1753091794452,1e-08,3771.1,3771.0,19.70221835]
[1753091794965,1e-08,3771.1,3771.0,19.81816294]
[1753091796741,1e-08,3771.4,3771.3,3.20160554]
[1753091796943,0.002,3771.9,3771.5,6.20146493]
[1753091796944,1e-08,3771.6,3771.5,6.20146493]
[1753091797135,1e-08,3771.9,3771.8,7.00025404]
[1753091797338,1e-08,3771.9,3771.8,17.35643413]
[1753091797559,1e-08,3771.9,3771.8,17.93695413]
[1753091797763,1e-08,3771.9,3771.8,18.06895413]
[1753091798064,1e-08,3771.9,3771.8,20.40612996]
[1753091799264,1e-08,3772.1,3772.0,7.01761346]
[1753091799444,1e-08,3772.1,3772.0,11.09761346]
[1753091799647,1e-08,3772.1,3772.0,11.69421346]
[1753091800470,0.002,3772.7,3772.1,6.20104318]
[1753091800471,1e-08,3772.3,3772.1,6.20104318]
[1753091800768,1e-08,3772.3,3772.2,18.70662989]
[1753091801066,1e-08,3772.3,3772.2,19.27672017]
[1753091804243,1e-08,3772.3,3772.2,15.19672017]
[1753091804632,1e-08,3772.3,3772.2,19.27472017]
[1753091809191,1e-08,3772.3,3772.2,9.12121722]
[1753091809499,1e-08,3772.3,3772.2,13.19821722]
[1753091819888,1e-08,3772.3,3772.2,13.19621722]
[1753091822895,1e-08,3772.3,3772.2,19.62759183]
[1753091823061,1e-08,3772.3,3772.2,19.27172017]
[1753091823789,1e-08,3772.3,3772.2,13.19621722]
[1753091827606,1e-08,3772.3,3772.2,19.27172017]
[1753091833616,1e-08,3772.3,3772.2,8.10661722]
[1753091833781,1e-08,3772.3,3772.2,2.7829729]
[1753091834182,1e-08,3772.3,3772.2,5.7829729]
[1753091835595,1e-08,3772.3,3772.2,6.2554729]
[1753091835798,1e-08,3772.3,3772.2,6.28198262]
[1753091836186,1e-08,3772.3,3772.2,7.6250729]
[1753091836499,1e-08,3772.3,3772.2,9.67842517]
[1753091837293,1e-08,3772.3,3772.2,8.38632517]
[1753091837501,1e-08,3772.3,3772.2,12.45732517]
[1753091837702,1e-08,3772.3,3772.2,12.92982517]
[1753091846754,1e-08,3772.3,3772.2,7.83632517]
[1753091850256,0.33190001,3772.3,3772.2,5.7829729]
[1753091850457,0.63190001,3772.3,3772.2,5.7829729]
[1753091850862,1.12600001,3772.3,3772.2,0.132]
[1753091851161,0.826,3772.2,3772.1,0.001]
[1753091851364,1.1579,3772.2,3772.1,0.001]
[1753091854471,1.1579,3772.2,3772.1,2.65204318]
[1753091857166,0.826,3772.2,3772.1,2.65204318]
[1753091860174,9.83897585,3772.2,3772.1,0.001]
[1753091860652,3.7634729,3772.2,3772.1,0.001]
[1753091861261,6.8434729,3772.2,3772.1,0.001]
[1753091862157,10.9114729,3772.2,3772.1,0.001]
[1753091863677,10.9104729,3772.2,3772.1,0.001]
[1753091867453,6.8434729,3772.2,3772.1,0.001]
[1753091867658,10.9104729,3772.2,3772.1,0.001]
[1753091868944,6.8434729,3772.2,3772.1,0.001]
[1753091869145,10.9104729,3772.2,3772.1,0.001]
[1753091869655,10.9094729,3772.2,3772.1,0.001]
[1753091871947,3.8606,3772.2,3772.1,0.001]
[1753091872279,7.9266,3772.2,3772.1,0.001]
[1753091873247,10.5775729,3772.2,3772.1,0.001]
[1753091873447,10.9094729,3772.2,3772.1,0.001]
[1753091874345,8.2585,3772.2,3772.1,0.001]
[1753091874582,7.9266,3772.2,3772.1,0.001]
[1753091874748,3.8606,3772.2,3772.1,0.001]
[1753091874950,8.0586,3772.2,3772.1,0.001]
[1753091875945,3.9926,3772.2,3772.1,0.001]
[1753091876256,8.0586,3772.2,3772.1,0.001]
[1753091877286,17.11697585,3772.2,3772.1,0.001]
[1753091879458,11.0414729,3772.2,3772.1,0.001]
[1753091883173,12.71907585,3772.2,3772.1,0.001]
[1753091883377,17.11597585,3772.2,3772.1,0.001]
[1753091884181,0.8044,3771.7,3771.2,0.11334772]
[1753091884382,2.65151643,3771.5,3770.8,3.10704437]
[1753091884703,4.064,3771.4,3770.9,0.5871]
[1753091884923,4.064,3771.4,3771.1,2.65173714]
[1753091885199,4.064,3771.4,3770.9,3.23898162]
[1753091885378,4.064,3771.4,3771.0,3.10691549]
[1753091885575,4.064,3771.4,3771.1,2.65174617]
[1753091885777,0.132,3771.6,3771.1,3.10684617]
[1753091885983,4.064,3771.5,3771.1,3.10684617]
[1753091886504,4.064,3771.5,3771.2,2.65166095]
[1753091886690,4.064,3771.5,3771.1,0.4551]
[1753091887074,0.132,3771.6,3771.1,0.4551]
[1753091887280,4.064,3771.5,3771.3,2.65154764]
[1753091887603,4.064,3771.5,3771.4,2.65153523]
[1753091887964,0.8309,3772.1,3771.4,1.03091829]
[1753091888188,6.362,3772.4,3772.0,2.65111346]
[1753091888189,7.1929,3772.4,3772.0,2.65111346]
[1753091888392,4.064,3772.2,3772.1,3.10609442]
[1753091888797,0.9629,3772.4,3772.1,3.10609442]
[1753091888992,4.064,3772.2,3772.1,3.10609442]
[1753091889388,0.132,3772.4,3772.2,2.6509729]
[1753091889590,4.36400001,3772.3,3772.2,2.6509729]
[1753091889805,4.36400001,3772.3,3772.2,3.1060729]
[1753091889993,0.30000001,3772.3,3772.2,3.1060729]
[1753091890197,4.36300001,3772.3,3772.2,3.1060729]
[1753091891899,0.30000001,3772.3,3772.2,2.6509729]
[1753091892104,0.30000001,3772.3,3772.2,3.70385117]
[1753091892307,4.36300001,3772.3,3772.2,3.70385117]
[1753091894597,4.36200001,3772.3,3772.2,3.70385117]
[1753091897310,0.30000001,3772.3,3772.2,3.70385117]
[1753091897615,4.36200001,3772.3,3772.2,3.70385117]
[1753091899119,0.30000001,3772.3,3772.2,6.70385117]
[1753091899299,0.30000001,3772.3,3772.2,7.66065117]
[1753091899485,4.36100001,3772.3,3772.2,7.66065117]
[1753091900308,0.30000001,3772.3,3772.2,7.66065117]
[1753091903216,4.062,3772.7,3772.6,6.41919183]
[1753091903385,4.062,3772.7,3772.6,8.02327863]
[1753091903585,4.062,3772.7,3772.6,8.47077863]
[1753091904419,4.062,3772.7,3772.6,8.66752684]
[1753091907709,0.002,3772.7,3772.6,8.66752684]
[1753091910444,0.002,3772.7,3772.6,0.132]
[1753091910736,0.002,3772.7,3772.2,2.65093162]
[1753091910737,0.7676,3772.6,3772.3,3.0]
[1753091910939,4.059,3772.5,3772.4,5.65083236]
[1753091911313,0.7676,3772.6,3772.5,2.65076209]
[1753091911519,4.8256,3772.6,3772.5,2.65076209]
[1753091911894,4.8256,3772.6,3772.4,5.65080446]
[1753091912100,4.8256,3772.6,3772.2,3.2304617]
[1753091912101,4.8256,3772.6,3772.3,2.65088618]
[1753091912299,4.8256,3772.6,3772.2,2.78296456]
[1753091912599,4.8256,3772.6,3772.3,2.65088505]
[1753091913727,4.8256,3772.6,3772.3,2.65085322]
[1753091913928,4.8256,3772.6,3772.2,2.78291337]
[1753091913929,0.7676,3772.6,3772.2,2.78291337]
[1753091914118,4.058,3772.5,3772.3,2.65090263]
[1753091914432,4.058,3772.5,3772.4,2.65083236]
[1753091919876,0.002,3772.7,3772.4,2.65083236]
[1753091919877,0.002,3772.7,3772.6,2.65069183]
[1753091920268,4.059,3772.7,3772.6,2.65069183]
[1753091921971,4.059,3772.7,3772.5,3.09823244]
[1753091922269,4.059,3772.7,3772.6,2.65069183]
[1753091922633,4.059,3772.7,3772.5,3.09824168]
[1753091923336,0.002,3772.7,3772.5,3.09824168]
[1753091923550,4.057,3772.6,3772.5,3.09824168]
[1753091924071,0.002,3772.7,3772.6,2.65069183]
[1753091924279,4.059,3772.7,3772.6,2.65069183]
[1753091924990,4.059,3772.7,3772.6,3.11939183]
[1753091924991,0.002,3772.7,3772.6,3.11939183]
[1753091925269,4.059,3772.7,3772.6,6.94072066]
[1753091925475,4.059,3772.7,3772.6,6.91421375]
[1753091929962,4.059,3772.7,3772.6,0.132]
[1753091930168,4.059,3772.7,3772.6,3.132]
[1753091930978,4.059,3772.7,3772.6,2.78269183]
[1753091931748,4.059,3772.7,3772.6,3.132]
[1753091931975,4.059,3772.7,3772.6,0.132]
[1753091932688,4.059,3772.7,3772.4,3.0]
[1753091933079,4.059,3772.7,3772.4,2.65081952]
[1753091933855,4.059,3772.7,3772.4,3.0]
[1753091934087,4.059,3772.7,3772.4,3.4687]
[1753091934286,4.059,3772.7,3772.5,2.65072107]
[1753091935592,4.059,3772.7,3772.4,3.11951957]
[1753091940566,4.059,3772.7,3772.3,0.133]
[1753091940767,4.059,3772.7,3772.5,0.4687]
[1753091941194,4.059,3772.7,3772.5,3.11945911]
[1753091941698,4.059,3772.7,3772.5,0.4687]
[1753091943494,4.059,3772.7,3772.5,2.65076158]
[1753091943803,4.059,3772.7,3772.6,0.4687]
[1753091944905,4.059,3772.7,3772.3,0.133]
[1753091945203,4.059,3772.7,3772.5,2.65071555]
[1753091945500,4.059,3772.7,3772.6,0.4687]
[1753091946008,4.059,3772.7,3772.6,2.65069183]
[1753091946464,4.059,3772.7,3772.6,3.11939183]
[1753091946671,4.059,3772.7,3772.5,2.65073754]
[1753091946902,4.059,3772.7,3772.4,3.4687]
[1753091947202,4.059,3772.7,3772.6,2.65069183]
[1753091947604,0.002,3772.7,3772.6,5.65069183]
[1753091947909,4.055,3772.7,3772.6,7.3383881]
[1753091950212,4.055,3772.7,3772.6,6.11939183]
[1753091953407,0.002,3772.7,3772.6,6.11939183]
[1753091953605,4.054,3772.7,3772.6,6.25139183]
[1753091953807,0.002,3772.7,3772.6,6.25139183]
[1753091954105,4.04697569,3772.7,3772.6,7.2172581]
[1753091956341,0.002,3773.1,3773.0,5.65041081]
[1753091956483,4.054,3773.1,3773.0,5.65041081]
[1753091956794,4.054,3773.1,3773.0,6.08751081]
[1753091957229,4.054,3773.1,3773.0,6.97451702]
[1753091958381,4.053,3773.1,3773.0,6.97451702]
[1753091962877,0.002,3773.1,3773.0,6.53741702]
[1753091963112,0.002,3773.1,3773.0,7.75911702]
[1753091963435,4.052,3773.1,3773.0,7.75911702]
[1753091964404,4.052,3773.1,3773.0,5.65041081]
[1753091966191,4.052,3773.1,3773.0,6.08751081]
[1753091966723,4.052,3773.1,3773.0,3.0]
[1753091966929,4.052,3773.1,3773.0,5.65041081]
[1753091967416,4.8067,3773.1,3773.0,3.0]
[1753091967637,5.1386,3773.1,3773.0,3.0]
[1753091967990,4.8067,3773.1,3773.0,3.0]
[1753091968205,4.8067,3773.1,3773.0,5.65041081]
[1753091968734,4.8067,3773.1,3773.0,3.0]
[1753091968919,4.8067,3773.1,3773.0,5.65041081]
[1753091970326,4.8067,3773.1,3773.0,3.0]
[1753091975522,7.78898791,3773.1,3772.7,0.132]
[1753091975826,7.78898791,3773.1,3772.2,0.4371]
[1753091975827,0.3319,3773.0,3772.5,0.132]
[1753091976034,4.048,3772.9,3772.7,2.65060883]
[1753091976430,4.048,3772.9,3772.7,3.08770883]
[1753091977128,4.048,3772.9,3772.7,0.4371]
[1753091977329,4.048,3772.9,3772.6,2.65067249]
[1753091977732,4.048,3772.9,3772.6,3.0]
[1753091977927,4.048,3772.9,3772.5,3.132]
[1753091978611,4.048,3772.9,3772.3,0.001]
[1753091978612,6.07550295,3772.6,3772.3,0.001]
[1753091978815,4.18,3772.5,3772.3,0.001]
[1753091979140,2.65094635,3772.3,3771.7,3.0]
[1753091979301,4.048,3772.2,3771.7,2.65131206]
[1753091979501,4.18,3772.2,3771.7,3.08841206]
[1753091979707,4.18,3772.2,3771.8,0.4371]
[1753091980139,4.18,3772.2,3771.9,3.0]
[1753091980742,4.18,3772.2,3771.8,3.4371]
[1753091981310,4.18,3772.2,3771.8,0.4371]
[1753091981931,4.18,3772.2,3771.9,3.0]
[1753091982117,4.18,3772.2,3771.9,6.12278208]
[1753091982324,4.18,3772.2,3772.0,0.4716]
[1753091983133,4.18,3772.2,3771.9,3.0]
[1753091983322,4.18,3772.2,3771.9,3.4716]
[1753091983640,4.18,3772.2,3771.7,5.65129685]
[1753091983833,4.18,3772.2,3771.7,6.12289685]
[1753091984514,4.18,3772.2,3771.7,0.4716]
[1753091984914,4.18,3772.2,3771.8,3.0]
[1753091985826,4.18,3772.2,3771.8,2.65123778]
[1753091986144,4.18,3772.2,3771.7,3.0]
[1753091986145,4.5119,3772.2,3771.7,3.0]
[1753091986450,4.18,3772.2,3771.7,3.0]
[1753091986747,2.65106083,3772.1,3771.6,0.132]
[1753091986923,4.047,3772.0,3771.6,3.132]
[1753091987115,4.3789,3772.0,3771.6,3.132]
[1753091987515,4.047,3772.0,3771.6,3.132]
[1753091987717,4.047,3772.0,3771.6,5.78338197]
[1753091988139,4.047,3772.0,3771.6,6.25498197]
[1753091988757,2.78299292,3772.2,3771.6,5.78338197]
[1753091988939,4.047,3772.1,3771.8,3.0]
[1753091989217,6.51391123,3772.3,3771.9,3.12278375]
[1753091989218,4.047,3772.0,3771.9,3.12278375]
[1753091989728,4.047,3772.0,3771.9,3.25478375]
[1753091990850,3.08,3772.3,3772.2,2.6509729]
[1753091991056,7.127,3772.3,3772.2,2.6509729]
[1753091991352,3.08,3772.3,3772.2,3.1225729]
[1753091991516,3.08,3772.3,3772.2,4.0539729]
[1753091991718,7.127,3772.3,3772.2,4.0539729]
[1753091991942,3.08,3772.3,3772.2,4.0539729]
[1753091992222,7.127,3772.3,3772.2,7.0539729]
[1753091992645,3.08,3772.3,3772.2,7.0539729]
[1753091992844,7.127,3772.3,3772.2,7.0539729]
[1753091993224,3.08,3772.3,3772.2,8.02448154]
[1753091993428,7.127,3772.3,3772.2,8.02448154]
[1753091994363,4.047,3772.3,3772.2,8.02448154]
[1753091995451,0.7996,3773.0,3772.5,2.65075385]
[1753091995641,0.7996,3773.0,3772.4,3.0]
[1753091995821,4.046,3772.9,3772.6,0.4716]
[1753091996355,4.046,3772.9,3772.6,3.12229039]
[1753091997055,4.046,3772.9,3772.6,0.4716]
[1753091997851,0.7996,3773.0,3772.6,0.4716]
[1753091998060,4.046,3772.8,3772.6,3.12228805]
[1753091998628,4.046,3772.8,3772.6,2.65068805]
[1753091999052,4.046,3772.8,3772.5,2.65075011]
[1753091999234,4.046,3772.8,3772.4,3.25442171]
[1753091999431,4.046,3772.8,3772.5,2.65075591]
[1753091999643,4.046,3772.8,3772.4,2.78278339]
[1753092000252,4.046,3772.8,3772.5,2.65075883]
[1753092000857,4.046,3772.8,3772.5,0.4716]
[1753092001044,4.046,3772.8,3772.5,3.12233134]
[1753092001239,4.046,3772.8,3772.4,0.132]
[1753092001441,4.046,3772.8,3772.4,2.78283206]
[1753092001953,4.046,3772.8,3772.5,2.65075283]
[1753092002158,4.046,3772.8,3772.6,2.65067624]
[1753092002856,4.046,3772.8,3772.5,3.12234409]
[1753092003159,4.046,3772.8,3772.6,2.65067915]
[1753092003362,4.046,3772.8,3772.5,3.12233304]
[1753092003520,4.046,3772.8,3772.5,0.4716]
[1753092003725,4.046,3772.8,3772.5,3.12233271]
[1753092004059,4.046,3772.8,3772.6,2.65068182]
[1753092004465,4.046,3772.8,3772.5,3.12233307]
[1753092004962,0.7515,3772.7,3772.3,3.0]
[1753092005163,1.0834,3772.7,3772.3,3.0]
[1753092005363,0.7515,3772.7,3772.2,3.132]
[1753092005665,2.6508209,3772.5,3772.2,0.132]
[1753092005840,0.7749,3772.3,3771.9,2.65117194]
[1753092006176,0.7749,3772.3,3772.0,3.132]
[1753092006679,0.7749,3772.3,3771.9,3.0]
[1753092007068,1.1068,3772.3,3771.8,0.132]
[1753092007367,0.132,3771.9,3771.6,0.001]
[1753092007569,4.045,3771.8,3771.6,0.001]
[1753092008546,4.045,3771.8,3771.6,3.001]
[1753092009369,4.045,3771.7,3771.6,3.001]
[1753092009664,4.8313,3771.7,3771.6,0.001]
[1753092010872,4.8313,3771.7,3771.6,2.65239463]
[1753092012267,4.8313,3771.7,3771.6,0.001]
[1753092012437,4.8313,3771.7,3771.6,2.65239463]
[1753092012955,4.045,3771.7,3771.6,2.65239463]
[1753092016473,0.132,3771.9,3771.6,0.4356]
[1753092016683,4.044,3771.8,3771.7,3.08592433]
[1753092017588,4.044,3771.8,3771.7,2.65132433]
[1753092020294,0.002,3773.0,3771.8,2.65125404]
[1753092020606,0.132,3772.6,3771.9,4.249]
[1753092020909,0.132,3772.6,3772.4,2.65076518]
[1753092021413,0.132,3772.6,3772.5,3.08536209]
[1753092021570,4.176,3772.6,3772.5,3.08536209]
[1753092021918,4.044,3772.6,3772.5,3.08536209]
[1753092022083,0.002,3773.0,3772.7,5.65062157]
[1753092022287,0.002,3773.0,3772.9,2.65048106]
[1753092022494,4.046,3773.0,3772.9,2.65048106]
[1753092022698,4.046,3773.0,3772.9,3.08508106]
[1753092024982,0.002,3773.0,3772.9,3.90438106]
[1753092025207,0.002,3773.0,3772.9,7.69188132]
[1753092025407,0.002,3773.0,3772.9,7.68127658]
[1753092026475,0.002,3773.0,3772.9,5.78248106]
[1753092026670,0.002,3773.0,3772.9,3.132]
[1753092026878,0.002,3773.0,3772.9,3.0]
[1753092027098,0.002,3773.0,3772.9,2.65048106]
[1753092027412,0.002,3773.0,3772.9,3.08508106]
[1753092027875,0.002,3773.0,3772.6,3.132]
[1753092028082,0.002,3773.0,3772.6,2.78268477]
[1753092028083,4.042,3772.9,3772.6,2.78268477]
[1753092028425,4.042,3772.9,3772.8,3.0]
[1753092029110,4.042,3772.9,3772.8,3.08515131]
[1753092029292,4.042,3772.9,3772.8,3.4346]
[1753092029778,4.042,3772.9,3772.8,0.4346]
[1753092029978,4.042,3772.9,3772.6,0.132]
[1753092030293,4.042,3772.9,3772.6,5.78268562]
[1753092030492,4.042,3772.9,3772.6,6.21728562]
[1753092030709,4.042,3772.9,3772.6,0.5666]
[1753092030907,4.042,3772.9,3772.6,3.21727935]
[1753092031111,4.042,3772.9,3772.6,0.5666]
[1753092032088,4.042,3772.9,3772.6,3.21726909]
[1753092032286,4.042,3772.9,3772.6,0.5666]
[1753092032695,4.042,3772.9,3772.6,0.132]
[1753092033618,4.044,3772.9,3772.6,0.132]
[1753092033922,0.3319,3772.8,3772.0,0.4346]
[1753092034132,4.176,3772.9,3772.3,3.132]
[1753092034294,2.65057085,3772.8,3772.3,3.132]
[1753092034494,6.82653012,3772.9,3772.3,5.78289414]
[1753092034999,2.6505724,3772.8,3772.3,3.132]
[1753092035201,4.176,3772.9,3772.3,0.5666]
[1753092035406,4.176,3772.9,3772.5,2.65075099]
[1753092035806,4.176,3772.9,3772.6,2.65068896]
[1753092036542,4.176,3772.9,3772.5,3.0853355]
[1753092036746,0.134,3772.9,3772.4,0.8317]
[1753092036918,4.042,3772.8,3772.7,2.65062157]
[1753092037452,4.042,3772.8,3772.7,3.08522157]
[1753092040329,0.002,3772.9,3772.8,2.65055131]
[1753092040641,0.002,3772.9,3772.8,6.08515131]
[1753092040938,4.043,3772.9,3772.8,6.08515131]
[1753092042016,0.002,3772.9,3772.8,6.9719286]
[1753092042243,0.002,3772.9,3772.8,7.8827286]
[1753092047418,0.002,3772.9,3772.8,11.9227286]
[1753092049491,0.002,3772.9,3772.8,7.8827286]
[1753092049644,0.002,3772.9,3772.8,11.03595131]
[1753092049846,0.002,3772.9,3772.8,6.99595131]
[1753092050141,0.002,3772.9,3772.8,11.03595131]
[1753092050744,0.002,3772.9,3772.8,17.11145426]
[1753092052740,0.002,3772.9,3772.8,17.3114455]
[1753092054380,0.002,3772.9,3772.8,19.30765221]
[1753092054989,0.002,3772.9,3772.8,19.85765221]
[1753092058059,0.002,3773.0,3772.9,6.20048106]
[1753092058258,1e-08,3773.0,3772.9,7.51708587]
[1753092058448,1e-08,3773.0,3772.9,7.49058106]
[1753092058647,1e-08,3773.0,3772.9,10.01412654]
[1753092061606,0.002,3773.5,3773.4,5.65012985]
[1753092061818,0.002,3773.5,3773.4,6.43123114]
[1753092061954,1e-08,3773.5,3773.4,7.44483114]
[1753092062300,1e-08,3773.5,3773.4,7.55032985]
[1753092062598,1e-08,3773.5,3773.4,9.58173421]
[1753092063302,1e-08,3773.5,3773.4,9.03173421]
[1753092063500,1e-08,3773.5,3773.4,13.06973421]
[1753092065667,1e-08,3773.5,3773.4,9.03173421]
[1753092066096,1e-08,3773.5,3773.4,13.06973421]
[1753092066608,1e-08,3773.5,3773.4,13.61973421]
[1753092066791,1e-08,3773.5,3773.4,13.97560587]
[1753092067910,1e-08,3773.7,3773.6,3.1999894]
[1753092068113,1e-08,3773.7,3773.6,19.11346151]
[1753092068413,1e-08,3773.7,3773.6,19.57706151]
[1753092069080,0.002,3774.5,3773.6,19.57706151]
[1753092069285,0.7656,3776.8,3775.7,0.7914]
[1753092069532,0.3319,3776.6,3775.9,2.64837522]
[1753092069845,0.3319,3776.6,3776.2,2.64815438]
[1753092070120,0.3319,3776.6,3776.5,2.64795445]
[1753092070881,0.3319,3776.6,3775.8,5.64839932]
[1753092070882,0.3319,3776.6,3776.4,2.64800614]
[1753092071410,1.1043,3776.5,3775.6,3.0]
[1753092071707,0.7724,3776.5,3776.4,2.64802457]
[1753092071888,0.7724,3776.5,3776.3,2.64808268]
[1753092072708,0.7724,3776.5,3776.4,2.64802457]
[1753092072876,0.7724,3776.5,3775.6,0.1953397]
[1753092073084,0.3319,3776.4,3776.1,2.64818452]
[1753092073281,0.7724,3776.5,3776.1,2.64818452]
[1753092073614,0.3319,3776.3,3776.1,2.64818452]
[1753092073813,0.7541,3776.1,3775.8,2.64843136]
[1753092074065,0.7541,3776.1,3775.6,3.19770348]
[1753092074066,0.3319,3776.0,3775.6,3.19770348]
[1753092074228,4.036,3776.8,3775.2,2.648855]
[1753092074229,0.7674,3775.8,3775.2,2.648855]
[1753092074371,0.3319,3775.7,3775.6,2.64858565]
[1753092074571,0.7674,3775.8,3775.7,2.6485155]
[1753092074803,0.7674,3776.3,3775.6,0.2015769]
[1753092075129,6.49525423,3778.7,3776.3,3.0]
[1753092075130,0.7896,3777.8,3776.3,3.0]
[1753092075425,6.49525423,3778.7,3776.2,4.2145]
[1753092075426,0.7896,3777.4,3776.2,4.2145]
[1753092075573,4.8436,3777.4,3777.0,2.64758577]
[1753092075769,0.3319,3777.3,3777.1,2.64752469]
[1753092076030,0.3319,3777.3,3776.9,2.64766955]
[1753092076329,4.3879,3777.3,3777.1,2.64752182]
[1753092076676,0.7896,3777.4,3776.7,3.0]
[1753092076877,4.8446,3777.4,3777.2,2.6474162]
[1753092077118,4.8446,3777.4,3776.7,0.02647814]
[1753092077300,0.3319,3777.3,3777.0,3.0]
[1753092077508,4.8446,3777.4,3776.3,2.64809469]
[1753092077509,0.3319,3777.2,3776.4,3.0]
[1753092077678,0.3319,3777.2,3777.0,2.64759586]
[1753092077873,0.3319,3777.1,3776.9,2.64765059]
[1753092078180,0.3319,3777.1,3776.8,0.132]
[1753092078181,0.3319,3777.1,3776.8,3.0]
[1753092078398,4.055,3777.3,3776.9,2.6476267]
[1753092078632,0.7859,3777.0,3775.7,3.4322]
[1753092078921,0.3319,3776.9,3776.4,2.64796868]
[1753092079275,0.7859,3777.0,3776.4,2.64796868]
[1753092079478,0.002,3777.4,3777.3,5.64739364]
[1753092079739,0.002,3777.4,3777.3,6.44669364]
[1753092079874,0.002,3777.4,3776.8,0.7993]
[1753092080079,0.101,3777.4,3776.6,3.0]
[1753092080376,0.002,3777.4,3777.1,2.64752716]
[1753092080580,0.7859,3777.3,3776.1,3.0]
[1753092080830,7.61733083,3777.3,3776.6,2.6478487]
[1753092081035,0.8063,3777.1,3775.9,0.7993]
[1753092081180,4.086,3777.0,3776.4,2.64795617]
[1753092081381,4.185,3777.0,3776.4,2.64795617]
[1753092081631,4.185,3777.0,3776.3,2.64807762]
[1753092081790,4.185,3777.0,3776.4,2.64801528]
[1753092081992,4.086,3777.0,3775.8,0.4322]
[1753092082191,4.086,3777.0,3776.1,2.64818156]
[1753092082192,0.7905,3776.8,3776.1,2.64818156]
[1753092082430,2.74683071,3776.7,3775.9,2.64831292]
[1753092082589,2.64797351,3776.5,3775.7,2.64849141]
[1753092082791,0.801,3776.4,3775.9,3.0]
[1753092082996,0.801,3776.4,3775.9,2.6483582]
[1753092083236,0.099,3776.3,3775.9,2.64835884]
[1753092083453,0.099,3776.3,3776.0,3.0]
[1753092083603,0.099,3776.3,3775.9,2.64835884]
[1753092083604,0.099,3776.3,3775.8,2.64839492]
[1753092083935,0.801,3776.4,3775.9,3.0]
[1753092084102,0.801,3776.4,3775.9,2.64835504]
[1753092084794,4.8863,3776.7,3776.1,2.64818148]
[1753092084989,0.8013,3776.7,3776.4,2.64801095]
[1753092085192,0.8018,3778.3,3776.6,10.0117071]
[1753092085410,0.8018,3778.3,3777.4,3.0]
[1753092085612,0.8018,3778.3,3777.7,2.64711332]
[1753092085822,0.8018,3778.3,3777.6,3.0]
[1753092085823,0.8018,3778.3,3777.8,2.6470302]
[1753092086026,0.8018,3778.3,3777.9,2.64696024]
[1753092086200,0.8018,3778.3,3778.0,2.64687654]
[1753092086526,0.8018,3778.3,3777.9,2.64692571]
[1753092086823,0.8018,3778.3,3777.8,2.64704162]
[1753092087023,0.8018,3778.3,3778.2,2.646763]
[1753092087224,2.97822745,3778.9,3777.9,2.64697318]